[Event "New York Summer GM-B 2022"]
[Site "New York"]
[Date "2022.07.08"]
[Round "1.1"]
[White "Zeltsan, Joseph"]
[Black "Wang, Qibiao"]
[Result "1-0"]
[ECO "C83"]
[WhiteElo "2337"]
[BlackElo "2365"]
[Annotator "RC"]
[PlyCount "63"]
[EventDate "2022.07.08"]
[EventType "tourn"]
[EventCountry "USA"]
[SourceTitle "playchess.com"]
[Source "ChessBase"]
[SourceQuality "1"]
[TimeControl "5400+30"]

1. e4 {[%emt 0:00:02]} e5 {[%emt 0:00:04]} 2. Nf3 {[%emt 0:00:03]} Nc6 {[%emt 0:00:06]} 3. Bb5 {[%emt 0:00:02]} a6 {[%emt 0:00:05]} 4. Ba4 {[%emt 0:00:02]} Nf6 {[%emt 0:00:06]} 5. O-O {[%emt 0:00:03]} Nxe4 {[%emt 0:00:04]} 6. d4 {[%emt 0:01:04]} b5 {[%emt 0:00:06]} 7. Bb3 {[%emt 0:00:02]} d5 {[%emt 0:00:05]} 8. dxe5 {[%emt 0:01:15]} Be6 {[%emt 0:00:11]} 9. Nbd2 {[%emt 0:02:41]} Nc5 {[%emt 0:01:00]} 10. c3 {[%emt 0:00:08]} Be7 {[%emt 0:00:07]} 11. Bc2 {[%emt 0:00:25]} d4 {[%emt 0:00:14]} 12. cxd4 {[%emt 0:03:11]} Nxd4 {[%emt 0:00:15]} 13. Nxd4 {[%emt 0:00:35]} Qxd4 {[%emt 0:00:08]} 14. Nf3 {[%emt 0:00:19]} Qxd1 {[%emt 0:19:28]} 15. Rxd1 {[%emt 0:01:22]} Bg4 {[%emt 0:02:15]} 16. h3 {[%emt 0:06:26]} Bh5 {[%emt 0:01:36]} 17. Be3 {[%emt 0:03:45]} O-O {[%emt 0:00:56]} 18. Rac1 {[%emt 0:00:46]} Ne6 {[%emt 0:05:56]} 19. g4 {[%emt 0:06:14]} Bg6 {[%emt 0:00:05]} 20. Rd7 {[%emt 0:04:03]} Bb4 {[%emt 0:09:06]} 21. Bf5 {[%emt 0:02:57]} Ba5 {[%emt 0:02:59]} 22. Bxe6 {[%emt 0:13:18]} fxe6 {[%emt 0:00:05]} 23. Ng5 {[%emt 0:00:24]} Rac8 {[%emt 0:09:07]} 24. Nxe6 {[%emt 0:02:16]} Rfe8 {[%emt 0:00:21]} 25. Rc6 {[%emt 0:06:56]} Be4 {[%emt 0:09:38]} 26. Rxa6 {[%emt 0:02:32]} Bb6 {[%emt 0:00:09]} 27. Nxg7 {[%emt 0:03:49]} Rxe5 {[%emt 0:00:49]} 28. Bxb6 {[%emt 0:01:21]} cxb6 {[%emt 0:00:04]} 29. Nh5 {[%emt 0:03:12]} Re6 {[%emt 0:02:06]} 30. Raa7 {[%emt 0:01:50]} h6 {[%emt 0:01:07]} 31. Kh2 {[%emt 0:01:03]} Bg6 {[%emt 0:02:02]} 32. Nf4 {[%emt 0:00:21]} 1-0

[Event "New York Summer GM-B 2022"]
[Site "New York"]
[Date "2022.07.08"]
[Round "1.2"]
[White "Maiti, Milind"]
[Black "Shmeliov, Denis"]
[Result "1/2-1/2"]
[ECO "E36"]
[WhiteElo "2316"]
[BlackElo "2436"]
[Annotator "TA"]
[PlyCount "70"]
[EventDate "2022.07.08"]
[EventType "tourn"]
[EventCountry "USA"]
[SourceTitle "playchess.com"]
[Source "ChessBase"]
[SourceQuality "1"]
[TimeControl "5400+30"]

{[%evp 11,70,0,23,0,0,0,0,-7,0,0,-7,-7,0,0,0,-8,-12,-22,-36,-20,14,0,37,13,58,44,51,51,57,56,55,54,54,50,57,62,59,43,43,43,29,26,43,43,43,43,73,42,73,66,74,66,66,17,66,66,74,0,65,0,70]} 1. d4 {[%emt 1:31:00]} Nf6 {[%emt 0:00:29]} 2. c4 {[%emt 0:00:00]} e6 {[%emt 0:00:29]} 3. Nc3 {[%emt 0:00:00]} Bb4 {[%emt 0:00:28]} 4. Qc2 {[%emt 0:00:00]} O-O {[%emt 0:00:36]} 5. a3 {[%emt 0:00:00]} Bxc3+ {[%emt 0:00:09]} 6. Qxc3 {[%emt 0:00:00]} d5 $1 {[%emt 0:00:07][%mdl 4] outshines the older 6...b6.} 7. cxd5 {[%emt 0:00:00] E36: Nimzo-Indian: Classical: 4...d5 5 a3.} Ne4 {[%emt 0:00:48]} 8. Qc2 {[%emt 0:00:00]} exd5 {[%emt 0:00:07]} 9. Bf4 {[%emt 0:00:00]} Nc6 {[%emt 0:02:42]} ({Don't take} 9... Qh4 10. e3 $14) 10. e3 {[%emt 0:00:00]} Re8 {[%emt 0:05:51]} 11. Nf3 {[%emt 0:05:00]} g5 {[%emt 0:08:08]} 12. Bg3 {[%emt 0:00:00]} g4 {[%emt 0:03:44]} 13. Ne5 {[%emt 0:00:00]} Nxe5 {[%emt 0:02:52]} 14. dxe5 {[%emt 0:00:00] [#]} (14. Bxe5 {looks sharper.} c5 15. Be2 f6 16. Bf4) 14... Bf5 $146 {[%emt 0:11:33]} ({Predecessor:} 14... h5 15. f3 Nxg3 16. hxg3 Rxe5 17. Qc3 d4 18. O-O-O Qg5 19. Qxd4 Be6 20. f4 Rc5+ {½-½ (27) Weber,J (2548)-Hoeven,D (2648) ICCF email 2020}) 15. Bd3 {[%emt 0:00:00]} Bg6 {[%emt 0:03:46]} 16. Bf4 {[%emt 0:00:00]} Qe7 {[%emt 0:03:35]} 17. O-O {[%emt 0:00:00]} Nc5 {[%emt 0:07:34]} 18. Bxg6 {[%emt 0:00:00]} ({Of course not} 18. Bf5 c6 $11) 18... fxg6 {[%emt 0:00:26]} 19. Rac1 {[%emt 0:00:00]} Ne6 {[%emt 0:00:18]} 20. Qd1 {[%emt 0:00:00][%csl LRd5,LRg4]} Nxf4 {[%emt 0:20:25]} 21. exf4 {[%emt 0:00:00]} Qd7 {[%emt 0:00:04]} 22. Rc3 {[%emt 0:00:00]} Rf8 {[%emt 0:00:54]} 23. g3 {[%emt 0:00:00]} Rae8 {[%emt 0:01:42]} 24. Qd4 {[%emt 0:00:00]} a6 {[%emt 0:00:52]} 25. b4 {[%emt 0:00:00][%cal Oa3a4]} c6 {[%emt 0:05:47]} 26. f3 {[%emt 0:00:00]} gxf3 {[%emt 0:01:44]} 27. Rcxf3 {[%emt 0:00:00]} Qf5 {[%emt 0:01:04]} 28. Kg2 {[%emt 0:01:39]} h5 {[%emt 0:06:02]} 29. h3 {[%emt 0:03:01]} Re6 {[%emt 0:00:57]} 30. R1f2 {[%emt 0:00:52]} Rd8 {[%emt 0:01:16]} 31. Qd3 {[%emt 0:02:05]} Kf7 {[%emt 0:01:56]} 32. Rd2 {[%emt 0:01:34]} (32. Qd2 $14) 32... Re7 {[%emt 0:04:23]} (32... Qxd3 $11 33. Rfxd3 g5) 33. Qd4 $14 {[%emt 0:00:39]} Re6 {[%emt 0:00:19]} 34. Qd3 {[%emt 0:00:14]} Re7 {[%emt 0:00:05]} 35. Qd4 {[%emt 0:00:05]} Re6 $1 {[%emt 0:00:12] Weighted Error Value: White=0.11 (very precise) /Black=0.10 (very precise)} 1/2-1/2

[Event "New York Summer GM-B 2022"]
[Site "New York"]
[Date "2022.07.08"]
[Round "1.3"]
[White "Lenderman, Aleksandr"]
[Black "Yudasin, Leonid"]
[Result "1/2-1/2"]
[ECO "E18"]
[WhiteElo "2572"]
[BlackElo "2396"]
[Annotator "TA"]
[PlyCount "54"]
[EventDate "2022.07.08"]
[EventType "tourn"]
[EventCountry "USA"]
[SourceTitle "playchess.com"]
[Source "ChessBase"]
[SourceQuality "1"]
[TimeControl "5400+30"]

{[%evp 20,54,43,39,35,35,42,48,32,25,19,26,23,21,25,13,47,47,35,44,41,47,50,13,15,0,0,0,8,7,11,0,10,-24,2815,0,2739]} 1. d4 {[%emt 0:03:05]} Nf6 {[%emt 0:00:09]} 2. c4 {[%emt 0:00:07]} e6 {[%emt 0:00:07]} 3. Nf3 {[%emt 0:00:03]} b6 {[%emt 0:00:56]} 4. g3 {[%emt 0:00:07]} Bb7 {[%emt 0:01:52]} 5. Bg2 {[%emt 0:00:18]} Be7 {[%emt 0:00:35]} 6. O-O {[%emt 0:00:30]} O-O {[%emt 0:00:10]} 7. Nc3 {[%emt 0:03:06]} d5 {[%emt 0:01:05]} 8. cxd5 {[%emt 0:00:31]} exd5 {[%emt 0:00:19]} 9. Bf4 {[%emt 0:00:08][%cal Bc1f4,Bf4e5,Be5d4][%mdl 32]} Na6 {[%emt 0:04:02]} 10. Rc1 {[%emt 0:05:46]} Qd7 {[%emt 0:07:47]} 11. Qc2 {[%emt 0:07:17]} Rfd8 {[%emt 0:07:03] E18: Queen's Indian: Old Main Line (4 g3 Bb7 5 Bg2 Be7 6 0-0 0-0 7 Nc3).} 12. Rfd1 {[%emt 0:00:47]} h6 {[%emt 0:08:19]} 13. a3 {[%emt 0:05:41]} c5 {[%emt 0:06:02] Prevents b4. White is slightly better.} 14. Be5 {[%emt 0:08:40]} Qe6 {[%emt 0:03:33] [#]} 15. Nh4 $146 {[%emt 0:08:56]} ({Predecessor:} 15. Bxf6 Bxf6 16. e3 Rac8 17. Qa4 Ra8 18. b4 {½-½ (18) Adamski,J (2425)-Abramovic,B (2475) Prague 1983}) 15... cxd4 {[%emt 0:06:50]} 16. Bxd4 {[%emt 0:00:34]} Ne4 {[%emt 0:00:14]} 17. Nf3 {[%emt 0:00:17]} Nac5 {[%emt 0:02:16]} 18. b4 {[%emt 0:01:14]} Nxc3 {[%emt 0:02:03]} 19. Qxc3 {[%emt 0:03:04]} Ne4 {[%emt 0:02:01]} 20. Qb2 {[%emt 0:00:17]} Bf8 {[%emt 0:01:51]} 21. Rc7 {[%emt 0:00:53]} Bc6 {[%emt 0:02:02]} 22. Bh3 {[%emt 0:04:03]} Qxh3 {[%emt 0:01:07]} 23. Rxc6 {[%emt 0:00:07]} Rac8 {[%emt 0:02:06]} 24. Ne5 {[%emt 0:05:11]} Nd6 {[%emt 0:04:05]} 25. Qa2 {[%emt 0:12:50]} Nc4 {[%emt 0:03:25] [#] aiming for ...Nxe5.} 26. Rxc8 {[%emt 0:01:12]} Nxa3 $2 {[%emt 0:33:31][%mdl 8192]} (26... Rxc8 $11 27. Qa1 Qe6) 27. b5 $2 {[%emt 0:29:16]} Nc4 $2 {[%emt 0:00:00][%mdl 40960] Weighted Error Value: White=0.40/Black=0.05 (flawless) . An unexpected result.} 1/2-1/2

[Event "New York Summer GM-B 2022"]
[Site "New York"]
[Date "2022.07.08"]
[Round "1.4"]
[White "Griffith, Kyron"]
[Black "Tiglon, Bryce"]
[Result "1/2-1/2"]
[ECO "C84"]
[WhiteElo "2357"]
[BlackElo "2391"]
[Annotator "TA"]
[PlyCount "87"]
[EventDate "2022.07.08"]
[EventType "tourn"]
[EventCountry "USA"]
[SourceTitle "playchess.com"]
[Source "ChessBase"]
[SourceQuality "1"]
[TimeControl "5400+30"]

{[%evp 13,87,17,20,6,2,6,9,5,14,8,21,22,23,22,29,28,22,15,32,0,0,-8,0,-8,-10,-8,-3,-15,-11,-8,-4,-27,-33,-27,-24,-29,-6,-17,-20,-20,-14,-29,0,-60,-60,-60,-60,-60,-50,-62,8,-48,-41,-60,-56,-57,-57,-89,-93,-583,-63,-392,-296,-265,-130,-145,-9,-12,-17,-11,13,13,13,13,13,0]} 1. e4 {[%emt 0:13:48]} e5 {[%emt 0:00:11]} 2. Nf3 {[%emt 0:00:03]} Nc6 {[%emt 0:00:08]} 3. Bb5 {[%emt 0:00:15][%cal Bf1b5,Bb5a4,Ba4b3,Bb3a2][%mdl 32]} a6 {[%emt 0:00:19]} 4. Ba4 {[%emt 0:00:04]} Nf6 {[%emt 0:00:07]} 5. O-O {[%emt 0:00:25]} Be7 {[%emt 0:00:08]} 6. d3 {[%emt 0:00:22]} b5 {[%emt 0:00:37]} 7. Bb3 {[%emt 0:00:05]} d6 {[%emt 0:00:05]} 8. a3 {[%emt 0:00:04] C84: Closed Ruy Lopez: Unusual White 6th moves.} Na5 {[%emt 0:00:20]} 9. Ba2 {[%emt 0:00:24]} c5 {[%emt 0:00:09][%cal Bc7c5,Bc5c4][%mdl 32]} 10. Nc3 {[%emt 0:02:11]} Be6 {[%emt 0:00:10]} 11. Nh4 {[%emt 0:04:34]} c4 {[%emt 0:00:25][%cal Of6e4]} 12. Nf5 {[%emt 0:04:07]} Bxf5 {[%emt 0:00:03]} 13. exf5 {[%emt 0:00:05]} d5 {[%emt 0:00:05]} 14. Bg5 {[%emt 0:08:08]} O-O {[%emt 0:04:14]} 15. Re1 {[%emt 0:06:36]} Ra7 {[%emt 0:02:12] [#]} 16. dxc4 $146 {[%emt 0:06:37]} ({Predecessor:} 16. Rxe5 Rd7 17. Re1 Nc6 18. Ne2 Re8 19. Ng3 h6 20. Bh4 Nh7 21. Bxe7 Rdxe7 22. Qd2 {1-0 (58) Ferreira,J (2520)-Sousa,A (2405) Reykjavik 2021}) 16... d4 {[%emt 0:25:56]} 17. Bxf6 {[%emt 0:04:51]} Bxf6 {[%emt 0:00:35]} 18. Ne4 {[%emt 0:01:04] Threatens to win with c5.} Nxc4 {[%emt 0:01:16]} 19. Rb1 {[%emt 0:05:15]} Nd6 {[%emt 0:08:59]} 20. Nxd6 {[%emt 0:04:44]} Qxd6 {[%emt 0:00:03]} 21. Bb3 {[%emt 0:00:41]} a5 {[%emt 0:04:22]} 22. Qf3 {[%emt 0:04:56]} Rd8 {[%emt 0:02:21]} 23. a4 {[%emt 0:01:05]} bxa4 {[%emt 0:01:15]} 24. Bxa4 {[%emt 0:00:16]} Rc7 {[%emt 0:00:24][%cal Ba7c7,Bc7c4,Bc4b4,Bb4b8][%mdl 32]} 25. g3 {[%emt 0:04:06]} Rc4 {[%emt 0:04:11]} 26. Ra1 {[%emt 0:06:27]} Rb4 {[%emt 0:01:10]} 27. Ra2 {[%emt 0:00:12]} Rdb8 {[%emt 0:13:30]} 28. b3 {[%emt 0:01:14]} ({Better is} 28. Rd1 $11) 28... Rc8 $15 {[%emt 0:00:12]} 29. h4 {[%emt 0:01:45]} Rbb8 {[%emt 0:01:20]} 30. Qe4 {[%emt 0:02:04]} Rc3 {[%emt 0:02:22]} 31. Rd1 {[%emt 0:00:58]} h6 {[%emt 0:02:30]} (31... Qc7 $15) 32. Kg2 {[%emt 0:01:13]} (32. Rd3 $1 $11) 32... Qc7 {[%emt 0:02:03]} 33. Rd2 {[%emt 0:01:58]} Rb4 {[%emt 0:00:48]} 34. Qa8+ {[%emt 0:01:33]} Kh7 {[%emt 0:00:30][%cal Oe5e4]} 35. Qd5 {[%emt 0:00:31]} e4 {[%emt 0:02:35] Strongly threatening ...e3.} 36. Re2 {[%emt 0:11:01][%mdl 8192]} ({Wrong is} 36. Qxe4 $2 d3 37. Qxd3 Rxd3 38. Rxd3 Re4 $19) (36. Qd7 $17 {nothing else works.}) 36... e3 $2 {[%emt 0:01:38]} (36... d3 $19 37. cxd3 Rd4) 37. fxe3 $2 {[%emt 0:00:41][%mdl 8192]} (37. Qd7 $1 $15) 37... dxe3 {[%emt 0:01:21] ...Rg4 is the strong threat.} 38. Qf3 {[%emt 0:02:08] [#] Inhibits Rg4.} Qe5 {[%emt 0:09:38]} (38... Bxh4 $1 $19 {[%cal Oc7e5][%mdl 512] And now ...Qe5! would win.} 39. Be8 Qe7 40. Bxf7 Qxf7 41. gxh4 Rxh4) 39. Ra1 {[%emt 0:00:46]} Rxc2 {[%emt 0:01:58]} 40. Rxc2 $11 {[%emt 0:00:01] The position is equal.} Qxa1 {[%emt 0:00:06]} 41. Qxe3 {[%emt 0:00:09]} Rg4 {[%emt 0:01:50]} 42. Be8 $1 {[%emt 0:01:02]} Qb1 {[%emt 0:01:36]} (42... Bxh4 43. Bxf7 Qf6 44. Qe8 (44. Bg6+ Rxg6 45. fxg6+ Qxg6 $18) 44... Rxg3+ 45. Kh2 Rh3+ 46. Kxh3 $18) 43. Re2 {[%emt 0:01:15]} Qxf5 {[%emt 0:05:03] Hoping for ...Bxh4.} (43... Bxh4 $2 44. Bxf7 Rg5 45. Bg6+ Rxg6 46. fxg6+ Qxg6 47. Qf3 $18) 44. Qf3 {[%emt 0:00:24] Weighted Error Value: White=0.41/Black=0.39} 1/2-1/2

[Event "New York Summer GM-B 2022"]
[Site "New York"]
[Date "2022.07.08"]
[Round "1.5"]
[White "Jacobson, Aaron"]
[Black "Paragua, Mark"]
[Result "1-0"]
[ECO "D37"]
[WhiteElo "2305"]
[BlackElo "2461"]
[Annotator "TA"]
[PlyCount "107"]
[EventDate "2022.07.08"]
[EventType "tourn"]
[EventCountry "USA"]
[SourceTitle "playchess.com"]
[Source "ChessBase"]
[SourceQuality "1"]
[TimeControl "5400+30"]

{[%evp 9,107,26,23,33,34,14,14,19,34,18,97,94,156,150,280,161,191,129,194,193,190,162,149,164,157,117,115,116,125,97,96,97,100,90,91,109,106,31,51,43,86,0,113,0,100,92,117,111,196,28,22,0,0,0,0,-29,0,0,0,0,0,0,0,0,0,0,46,52,35,0,0,-206,-187,-454,-375,-926,-945,-743,-728,-807,-765,-454,-374,-892,-819,-4133,-2465,-1673,0,0,0,0,0,0,0,0,0,0,29989,5089]} 1. d4 {[%emt 0:02:08]} d5 {[%emt 0:00:09]} 2. c4 {[%emt 0:00:06]} e6 {[%emt 0:00:05]} 3. Nf3 {[%emt 0:00:03]} Nf6 {[%emt 0:00:05]} 4. Nc3 {[%emt 0:00:02]} a6 {[%emt 0:00:07]} 5. cxd5 {[%emt 0:00:21]} exd5 {[%emt 0:00:07]} 6. Bg5 {[%emt 0:00:03] D37: Queen's Gambit Declined: 5 Bf4.} Be6 {[%emt 0:00:13]} 7. Bxf6 {[%emt 0:00:46]} Qxf6 {[%emt 0:00:07]} 8. Qb3 {[%emt 0:00:02][%csl LRb7,LRd5] The position is equal.} Ra7 {[%emt 0:00:17]} 9. g3 {[%emt 0:00:05]} Nd7 {[%emt 0:06:38] 9...Bd6 is the modern continuation.} (9... Bd6 $11 {remains equal.}) 10. Nxd5 $16 {[%emt 0:07:11]} Qd8 {[%emt 0:21:45]} ({Black should try} 10... Bxd5 11. Qxd5 Bb4+ 12. Kd1 Qe7) 11. Qe3 $1 {[%emt 0:01:45]} c5 {[%emt 0:00:04]} (11... c6 $16) 12. Nc3 {[%emt 0:03:21] Pair of Knights!} (12. Bh3 $142 Qa5+ 13. Nc3) 12... Nb6 {[%emt 0:02:24]} 13. O-O-O {[%emt 0:03:48]} (13. dxc5 $18 Nc4 14. Qe4 Bxc5 15. Bh3) 13... Nc4 {[%emt 0:01:25] [#]} (13... Nd5 $16 14. Qe5 Nxc3 15. bxc3 cxd4) 14. Qe4 $146 {[%emt 0:03:25] Strongly threatening d5.} ({Predecessor:} 14. Qd3 b5 15. d5 Bc8 16. e4 Bd6 17. Qc2 Ne5 18. Nxe5 Bxe5 19. f4 Bd4 20. Bg2 {1-0 (66) Livaic,L (2507)-Grachev,B (2612) Chess.com INT 2020}) 14... Qb6 {[%emt 0:06:30][%csl Gc4][%cal Rb6b2]} 15. Na4 {[%emt 0:05:10]} Qa5 {[%emt 0:03:07]} 16. d5 {[%emt 0:00:15]} Nd6 {[%emt 0:00:07] [#]} 17. Qe5 {[%emt 0:00:44]} Qxa4 {[%emt 0:00:16]} 18. dxe6 {[%emt 0:00:11]} f6 {[%emt 0:02:44]} 19. Qh5+ {[%emt 0:05:46]} (19. Qxc5 Ra8 20. e7 (20. Rxd6 $2 Bxd6 21. Qc2 Qxa2 $17) 20... Rc8 21. exf8=Q+ (21. exf8=R+ Rxf8 22. Qxc8+ Nxc8 $15) 21... Rxf8 22. Qxc8+ Nxc8 $15) 19... g6 {[%emt 0:00:53]} 20. Qd5 {[%emt 0:00:06] Active counter play!} (20. Qxc5 $2 Ra8 21. Rxd6 Bxd6 $19) 20... Be7 {[%emt 0:01:21]} 21. h4 {[%emt 0:06:10][%cal Bh2h4,Bh4h5][%mdl 32]} (21. Qxc5 $2 Ra8 22. Rxd6 Bxd6 $19) 21... O-O {[%emt 0:11:28]} 22. h5 {[%emt 0:00:04]} g5 {[%emt 0:00:06]} 23. Nd2 {[%emt 0:08:48]} (23. Bg2 $16) 23... c4 $14 {[%emt 0:03:10]} 24. Nb1 $1 {[%emt 0:22:43]} Nb5 {[%emt 0:03:23]} 25. Bh3 {[%emt 0:05:05]} (25. e3 $16) 25... Raa8 {[%emt 0:04:01]} (25... Qxa2 $11 26. Bf5 b6) 26. Bf5 {[%emt 0:00:22]} (26. Qxb7 $6 c3 27. Qxe7 cxb2+ 28. Kxb2 Nd4 $11) ({White must play} 26. Qe4 $1 $16 Qxa2 27. Rd7 (27. Qxb7 $2 c3 $19)) 26... c3 {[%emt 0:08:32] [#]} (26... Qxa2 $11 27. Bxh7+ (27. Qxb7 Ra7 $17) 27... Kxh7 28. Qf5+ Kh8) 27. Qb3 $1 $16 {[%emt 0:03:00]} (27. bxc3 $2 Ba3+ 28. Kd2 Rad8 $19) (27. Qxb7 $2 cxb2+ 28. Kxb2 Qb4+ 29. Ka1 Rab8 $17) 27... Qa5 {[%emt 0:01:23]} 28. Rd5 {[%emt 0:00:21][%cal Rb2c3]} Rac8 {[%emt 0:03:26]} (28... cxb2+ $16 29. Kxb2 Rad8) 29. a4 $2 {[%emt 0:03:05]} (29. bxc3 $18 {aiming for Rhd1.} Rc6 30. Kb2) 29... Nd4 $1 $11 {[%emt 0:02:57]} 30. Rxd4 {[%emt 0:08:28] Dancing on a razor blade.} (30. Rxa5 $2 Nxb3+ 31. Kc2 Nxa5 $19) (30. Bxh7+ $5 Kxh7 31. Rxd4 (31. Rxa5 $2 Nxb3+ 32. Kc2 Nxa5 $19) 31... cxb2+ 32. Kxb2 $16) 30... cxb2+ {[%emt 0:01:31]} ({Resist} 30... Qxf5 31. Nxc3 b5 32. axb5 (32. Rd7 b4 $11) 32... axb5 33. Rhd1 $16 (33. Rd7 $2 b4 $19)) 31. Kxb2 {[%emt 0:00:07]} Qxf5 {[%emt 0:00:04]} 32. f4 {[%emt 0:02:59]} Rc6 {[%emt 0:02:04]} ({Don't do} 32... Qc5 33. Rd5 Qc6 34. Rhd1 $11) 33. Rc1 {[%emt 0:03:12]} Rxc1 {[%emt 0:02:15]} 34. Kxc1 {[%emt 0:00:02]} b5 {[%emt 0:00:17]} 35. axb5 {[%emt 0:01:24]} axb5 {[%emt 0:00:42]} 36. Kd2 {[%emt 0:00:28] Black must now prevent Nc3.} gxf4 {[%emt 0:07:49]} 37. gxf4 {[%emt 0:00:08]} Qxh5 {[%emt 0:00:03]} (37... b4 $11 {deserves consideration.}) 38. Nc3 $14 {[%emt 0:00:28]} Qc5 {[%emt 0:06:10]} 39. Rd7 {[%emt 0:03:34]} Rc8 $1 {[%emt 0:00:08]} 40. Rxe7 $2 {[%emt 0:04:10]} Qxe7 $11 {[%emt 0:00:30][%mdl 4096] Endgame KQR-KQN} 41. Nd5 $2 {[%emt 0:00:26]} (41. Nxb5 Rd8+ 42. Ke1) 41... Qc5 {[%emt 0:01:57]} 42. f5 $2 {[%emt 0:00:34]} (42. Nxf6+ Kg7 43. Nd5 Qd4+ 44. Qd3) 42... Qd4+ $19 {[%emt 0:00:35]} 43. Qd3 {[%emt 0:00:03]} Qxd3+ {[%emt 0:00:29]} 44. Kxd3 {[%emt 0:00:54] KR-KN} Kg7 {[%emt 0:00:01]} 45. e4 {[%emt 0:00:23]} Rd8 {[%emt 0:00:57] And now ...b4 would win.} 46. Kd4 $2 {[%emt 0:00:35]} (46. Kc3 Rc8+ 47. Kd3) 46... b4 {[%emt 0:00:21] Hoping for ...b3.} 47. e5 {[%emt 0:00:27] [#]} fxe5+ $1 {[%emt 0:00:43]} 48. Kxe5 {[%emt 0:00:02] [#]} Rxd5+ $1 {[%emt 0:00:25][%mdl 512]} 49. Kxd5 {[%emt 0:00:01] White threatens e7 and mate. KPP-KPP} b3 {[%emt 0:00:01]} 50. e7 {[%emt 0:00:40]} Kf7 {[%emt 0:01:05] ( -> ...b2)} 51. Kd6 {[%emt 0:00:02] Kd7 would kill now.} b2 $1 {[%emt 0:00:31]} 52. Kd7 {[%emt 0:00:02]} b1=Q {[%emt 0:00:07]} 53. e8=Q+ {[%emt 0:00:03]} Kf6 $2 {[%emt 0:00:50][%mdl 8192]} (53... Kg7 $11 54. Qe7+ Kg8) 54. Qe7+ {[%emt 0:00:23] Both players deserved the win here.  Weighted Error Value: White=0.65/Black=0.35} 1-0

[Event "New York Summer GM-B 2022"]
[Site "New York"]
[Date "2022.07.08"]
[Round "2.1"]
[White "Wang, Qibiao"]
[Black "Paragua, Mark"]
[Result "0-1"]
[ECO "B11"]
[WhiteElo "2365"]
[BlackElo "2461"]
[Annotator "RC"]
[PlyCount "110"]
[EventDate "2022.07.08"]
[EventType "tourn"]
[EventCountry "USA"]
[SourceTitle "playchess.com"]
[Source "ChessBase"]
[SourceQuality "1"]
[TimeControl "5400+30"]

1. e4 {[%emt 0:00:02]} c6 {[%emt 0:00:09]} 2. Nf3 {[%emt 0:00:08]} d5 {[%emt 0:00:07]} 3. Nc3 {[%emt 0:00:10]} Bg4 {[%emt 0:00:32]} 4. h3 {[%emt 0:00:26]} Bxf3 {[%emt 0:00:06]} 5. Qxf3 {[%emt 0:00:06]} e6 {[%emt 0:00:07]} 6. Be2 {[%emt 0:00:21]} Nd7 {[%emt 0:00:30]} 7. d4 {[%emt 0:00:07]} dxe4 {[%emt 0:01:44]} 8. Nxe4 {[%emt 0:00:10]} Ngf6 {[%emt 0:00:07]} 9. O-O {[%emt 0:05:56]} Nxe4 {[%emt 0:00:32]} 10. Qxe4 {[%emt 0:00:05]} Nf6 {[%emt 0:03:53]} 11. Qd3 {[%emt 0:01:38]} Bd6 {[%emt 0:00:19]} 12. b3 {[%emt 0:05:06]} Qc7 {[%emt 0:05:09]} 13. Bb2 {[%emt 0:01:30]} O-O {[%emt 0:02:01]} 14. Rad1 {[%emt 0:05:14]} a5 {[%emt 0:03:42]} 15. a4 {[%emt 0:00:20]} Rad8 {[%emt 0:00:54]} 16. Bf3 {[%emt 0:03:42]} h6 {[%emt 0:11:22]} 17. g3 {[%emt 0:03:33]} Nd5 {[%emt 0:09:04]} 18. Kg2 {[%emt 0:02:28]} Be7 {[%emt 0:02:04]} 19. Rfe1 {[%emt 0:02:38]} Bf6 {[%emt 0:00:21]} 20. Ba3 {[%emt 0:04:42]} Rfe8 {[%emt 0:01:58]} 21. c4 {[%emt 0:01:20]} Nb4 {[%emt 0:06:26]} 22. Bxb4 {[%emt 0:01:14]} Rxd4 {[%emt 0:05:51]} 23. Bxa5 {[%emt 0:00:41]} Qxa5 {[%emt 0:00:05]} 24. Qc2 {[%emt 0:01:17]} Qc5 {[%emt 0:01:17]} 25. Rxd4 {[%emt 0:01:08]} Bxd4 {[%emt 0:00:02]} 26. Rd1 {[%emt 0:01:13]} e5 {[%emt 0:00:35]} 27. h4 {[%emt 0:05:10]} Rf8 {[%emt 0:06:10]} 28. Qf5 {[%emt 0:04:07]} g6 {[%emt 0:03:54]} 29. Qf6 {[%emt 0:18:21]} Re8 {[%emt 0:00:24]} 30. Bg4 {[%emt 0:01:26]} h5 {[%emt 0:02:28]} 31. Bd7 {[%emt 0:00:41]} Qe7 {[%emt 0:01:14]} 32. Qxe7 {[%emt 0:00:05]} Rxe7 {[%emt 0:00:03]} 33. Bh3 {[%emt 0:00:33]} f5 {[%emt 0:00:23]} 34. Kf1 {[%emt 0:11:58]} c5 {[%emt 0:00:18]} 35. Bg2 {[%emt 0:03:28]} e4 {[%emt 0:00:05]} 36. Re1 {[%emt 0:01:44]} Kg7 {[%emt 0:34:34]} 37. f3 {[%emt 0:00:27]} Be5 {[%emt 0:00:00]} 38. f4 {[%emt 0:02:43]} Bd4 {[%emt 0:00:00]} 39. Rb1 {[%emt 0:00:41]} Re6 {[%emt 0:00:00]} 40. Ke2 {[%emt 0:13:51]} Kf6 {[%emt 0:00:00]} 41. Bf1 {[%emt 0:00:00]} Ra6 {[%emt 0:00:00]} 42. Ke1 {[%emt 0:00:00]} Ke6 {[%emt 0:00:00]} 43. Be2 {[%emt 0:00:00]} Kd7 {[%emt 0:00:00]} 44. Kf1 {[%emt 0:00:00]} Kc7 {[%emt 0:00:00]} 45. Bd1 {[%emt 0:00:00]} Rd6 {[%emt 0:00:00]} 46. Be2 {[%emt 0:00:00]} Bc3 {[%emt 0:00:00]} 47. Rd1 {[%emt 0:00:00]} Rd4 {[%emt 0:00:00]} 48. Rc1 {[%emt 0:00:00]} Bd2 {[%emt 0:00:00]} 49. Rc2 {[%emt 0:00:00]} Kb6 {[%emt 0:00:00]} 50. Rb2 {[%emt 0:00:00]} Ka5 {[%emt 0:00:00]} 51. Rb1 {[%emt 0:00:00]} Bc3 {[%emt 0:00:00]} 52. Kf2 {[%emt 0:00:00]} Kb4 {[%emt 0:00:00]} 53. Ke3 {[%emt 0:00:00]} Ka3 {[%emt 0:00:00]} 54. Rd1 {[%emt 0:02:13]} Kxb3 {[%emt 0:00:00]} 55. Rb1+ {[%emt 0:00:04]} Bb2 {[%emt 0:00:00]} 0-1